Cogmind - Beta 11.1 @@@ ROGUE MODE // 2022.10.15 @ 20:31:03 Player: DuckBoy Result: Escaped! Performance ------------- Evolutions (9) 4500 Regions Visited (27) 5400 Robots Destroyed (145) 725 Value Destroyed (5570) 5570 Prototype IDs (39) 780 Alien Tech Used (5) 1000 Bonus (14137) 14137 TOTAL SCORE: 32112 Bonus ------- Triggered Max Security 2000 High Alert Combat Kills 286 Follower Combat Kills 2847 Entered DSFs 1500 Network Hubs Disabled 800 Aligned with FarCom 300 Built Enhanced Grunts 300 Met R17 at Cetus 500 Met R17 at Research 2000 Met Sigix 2000 Win 3000 Friendly Fire -1396 Cogmind --------- Core Integrity 1600/1600 Matter 122/300 Energy 248/350 System Corruption 0% Temperature Cool (12) Movement Hovering (36) Location To Epsilon Eridani Parts ------- > --- POWER (3) -------- Quantum Reactor Matter Drive > --- PROPULSION (7) --- Linear Gravjet Antigrav Array Combat Linear Gravjet Combat Linear Gravjet Combat Linear Gravjet Combat Linear Gravjet > --- UTILITY (12) ----- Advanced Terrain Scan Processor Improved Melee Analysis Suite Advanced Transmission Jammer Phase Armor Hacking Suite Advanced Hacking Suite Experimental Hacking Suite Experimental Hacking Suite Advanced System Shield > --- WEAPON (3) ------- Compact HERF Cannon > --- INVENTORY (5) ---- Advanced Signal Interpreter Advanced Powered Armor Enhanced Quantum Rifle Compact HERF Cannon KE Penetrator Peak State ------------ > --- POWER ------------ Quantum Reactor Matter Drive > --- PROPULSION ------- Linear Gravjet Antigrav Array Combat Linear Gravjet Combat Linear Gravjet Combat Linear Gravjet Combat Linear Gravjet > --- UTILITY ---------- Advanced Terrain Scan Processor Improved Melee Analysis Suite Advanced Powered Armor Phase Armor Hacking Suite Advanced Hacking Suite Experimental Hacking Suite Experimental Hacking Suite Advanced System Shield > --- WEAPON ----------- Enhanced Nova Cannon KE Penetrator > --- INVENTORY -------- Light Particle Reactor Advanced Signal Interpreter Enhanced Quantum Rifle Compact HERF Cannon Compact HERF Cannon [Rating: 188] Favorites ----------- Power Ion Engine Engine Ion Engine Power Core Neutrino Core Reactor Light Antimatter Reactor Propulsion Combat Gravmag System Treads Light Treads Leg Biometal Leg Wheel Wheel Hover Unit Combat Gravmag System Utility Hacking Suite Device Advanced Transmission Jammer Storage Large Storage Unit Processor Advanced Terrain Scan Processor Hackware Hacking Suite Protection Improved Medium Armor Plating Artifact Phase Armor Weapon AWS/Autocannon Energy Gun Arc Projector Energy Cannon Advanced Plasma Cannon Ballistic Gun KE Penetrator Ballistic Cannon AWS/Autocannon Launcher Rocket Launcher Special Weapon Welding Torch Impact Weapon Heavy Flail Slashing Weapon Phasing Sabre Special Melee Weapon Advanced Datajack Build | -11 -10 -10 -10 -9 -8 -7 -7 -7 -7 -6 -6 -6 -6 -5 -5 -5 -5 -4 -4 -4 -4 -4 -3 -3 -3 -2 -1 ------- Run | Scr Mat Min Exi Min Mat Fac Was Fac DSF Fac Was Fac DSF Fac Was Fac DSF Fac Ext Cet Arc Hub Res Qua Sec Res Acc Slots Evolved 18 | . . . . . 4 2 . . . 2 . . . 2 . . . 2 . . . . 2 . . 2 2 Power 2 | . . . . . . . . . . . . . . . . . . 1 . . . . . . . 1 . Propulsion 5 | . . . . . 2 . . . . . . . . . . . . 1 . . . . 1 . . 1 . Utility 10 | . . . . . 1 2 . . . 2 . . . 2 . . . . . . . . 1 . . . 2 Weapon 1 | . . . . . 1 . . . . . . . . . . . . . . . . . . . . . . Parts Attached 178 | 6 2 1 . 3 2 30 1 2 3 2 . . . 5 2 . 18 7 21 12 2 20 24 8 . 7 . Power 21 | 1 1 . . . . 2 . . . . . . . . 1 . 1 1 3 2 . 3 2 2 . 2 . Engine 5 | 1 1 . . . . 2 . . . . . . . . . . . . . . . 1 . . . . . Core 5 | . . . . . . . . . . . . . . . . . 1 . 2 . . 1 1 . . . . Reactor 11 | . . . . . . . . . . . . . . . 1 . . 1 1 2 . 1 1 2 . 2 . Propulsion 41 | 2 . . . . 1 7 . . 2 . . . . . 1 . 8 1 2 2 . 6 8 . . 1 . Treads 11 | 2 . . . . 1 2 . . 1 . . . . . 1 . 2 . . . . 2 . . . . . Leg 1 | . . . . . . . . . . . . . . . . . . . . . . . 1 . . . . Wheel 7 | . . . . . . 4 . . 1 . . . . . . . 2 . . . . . . . . . . Hover 22 | . . . . . . 1 . . . . . . . . . . 4 1 2 2 . 4 7 . . 1 . Flight . | . . . . . . . . . . . . . . . . . . . . . . . . . . . . Utility 53 | 1 1 1 . . . 5 . . 1 2 . . . 5 . . 3 2 8 1 2 7 8 4 . 2 . Device 27 | . . 1 . . . 1 . . 1 1 . . . 1 . . 1 1 7 1 1 6 3 1 . 1 . Storage 2 | 1 1 . . . . . . . . . . . . . . . . . . . . . . . . . . Processor 4 | . . . . . . 1 . . . . . . . . . . 1 1 . . . . 1 . . . . Hackware 12 | . . . . . . 3 . . . 1 . . . 2 . . . . . . . 1 4 1 . . . Protection 7 | . . . . . . . . . . . . . . 2 . . 1 . 1 . 1 . . 1 . 1 . Artifact 1 | . . . . . . . . . . . . . . . . . . . . . . . . 1 . . . Weapon 63 | 2 . . . 3 1 16 1 2 . . . . . . . . 6 3 8 7 . 4 6 2 . 2 . Energy Gun 22 | 1 . . . 1 . 9 . . . . . . . . . . 2 1 . 4 . 2 2 . . . . Energy Cannon 9 | . . . . . . 2 . . . . . . . . . . 1 1 1 1 . . 1 . . 2 . Ballistic Gun 10 | 1 . . . 2 . 2 . . . . . . . . . . . . 1 2 . 1 1 . . . . Ballistic Cannon 6 | . . . . . 1 2 1 1 . . . . . . . . 1 . . . . . . . . . . Launcher 2 | . . . . . . . . . . . . . . . . . . . 1 . . . 1 . . . . Special Weapon 1 | . . . . . . 1 . . . . . . . . . . . . . . . . . . . . . Impact Weapon 5 | . . . . . . . . 1 . . . . . . . . . . 1 . . 1 1 1 . . . Slashing Weapon 4 | . . . . . . . . . . . . . . . . . 2 . 1 . . . . 1 . . . Piercing Weapon . | . . . . . . . . . . . . . . . . . . . . . . . . . . . . Special Melee Weapon 4 | . . . . . . . . . . . . . . . . . . 1 3 . . . . . . . . Unidentified Prototypes 14 | . . . . . . 2 . . . . . . . . . . . . . 2 1 . 4 5 . . . Corrupted Parts 5 | . . . . . . . . . 1 . . . . . . . . . . . . 4 . . . . . System Corruption 38 | . . . . . . . . . 6 . . . . . . . . . . . . 32 . . . . . Parts Lost 37 | . . . . 1 . 4 . . . . . . 1 . . . 4 2 2 4 . 15 2 1 1 . . Power 5 | . . . . . . . . . . . . . . . . . . . 2 1 . 1 1 . . . . Propulsion 12 | . . . . . . 2 . . . . . . . . . . 1 . . 1 . 8 . . . . . Utility 8 | . . . . . . . . . . . . . 1 . . . 2 1 . . . 2 1 1 . . . Weapon 12 | . . . . 1 . 2 . . . . . . . . . . 1 1 . 2 . 4 . . 1 . . Highest Loss Streak 12 | . . . . 1 . 3 . . . . . . 1 . . . 2 1 1 3 . 12 1 1 1 . . To Critical Strikes 1 | . . . . . . . . . . . . . . . . . . . . . . 1 . . . . . Average Slot Usage (%) 82 | . 85 90 71 74 62 81 84 84 74 73 73 73 71 73 75 76 83 95 98 96 94 90 80 85 76 78 72 Engine 5 | . 14 14 14 14 9 7 7 7 7 6 6 6 6 5 2 . . . . . . . 1 . . . . Core 1 | . . . . . . . . . . . . . . . . . . 5 4 2 . . 3 2 . . . Reactor 1 | . . . . . . . . . . . . . . . 2 5 4 4 4 5 5 4 1 4 4 8 8 Treads 9 | . 28 28 28 28 26 10 15 15 9 6 6 6 6 5 5 5 4 . . . . . 1 . . . . Wheel 3 | . . . . . . 12 15 15 11 6 6 6 6 5 5 5 4 . . . . . . . . . . Hover 9 | . . . . . . 1 . . . . . . . . . . 2 26 26 26 26 24 14 23 23 26 24 Device 7 | . . 5 14 14 9 7 7 7 7 13 13 13 13 8 11 11 5 5 9 10 10 9 6 2 . 1 4 Storage 6 | . 14 14 14 14 9 7 7 7 7 6 6 6 6 5 5 5 5 5 5 5 5 4 . . . . . Processor 4 | . . . . . . 5 . . . . . . . . . . . 7 10 10 10 10 10 9 9 8 8 Hackware 16 | . . . . . . 11 23 23 23 26 26 26 24 29 29 29 29 25 21 21 21 21 24 25 23 21 20 Energy Gun 4 | . 14 14 . . . 7 . . . . . . . . . . 4 . . 6 10 6 3 1 . . . Ballistic Gun 3 | . 14 14 . 2 . . . . . . . . . . . . . . 3 4 5 7 2 4 4 2 . Ballistic Cannon 2 | . . . . . 8 3 7 6 7 6 6 6 6 5 5 5 5 4 . . . . . . . . . Naked Turns . | . . . . . . . . . . . . . . . . . . . . . . . . . . . . Heaviest Build 105 | 13 33 29 26 29 86 86 89 89 89 90 90 90 90 99 105 105 105 72 69 78 59 60 47 81 75 100 88 Greatest Support 103 | 40 40 40 40 40 60 60 20 20 70 28 28 28 70 28 28 28 70 70 70 70 68 68 94 94 94 103 103 Greatest Overweight (x) 12 | . . . . . 2 12 4 4 4 3 3 3 3 3 3 3 3 1 1 1 . 1 1 2 2 . . Average Overweight (x) . | . . . . . 1 . 4 4 2 3 3 3 2 3 3 3 1 . . . . . . . . . . Largest Inventory Capacity 15 | 8 15 15 15 15 15 15 15 15 15 15 15 15 15 15 15 15 15 15 15 15 15 15 5 5 5 5 5 Average Capacity 13 | 7 14 15 15 15 15 15 15 15 15 15 15 15 15 15 15 15 15 15 15 15 15 14 5 5 5 5 5 Most Carried 15 | 1 4 6 11 14 14 15 15 15 15 14 15 15 15 13 15 15 15 15 15 15 15 15 5 5 5 5 5 Average Carried 11 | . 2 5 9 12 11 14 14 14 14 13 14 15 14 12 14 15 12 13 14 14 14 13 4 4 5 4 5 Final Capacity 15 | 8 15 15 15 15 15 15 15 15 15 15 15 15 15 15 15 15 15 15 15 15 15 5 5 5 5 5 5 Final Carried 15 | 1 4 6 11 11 12 14 15 15 15 13 15 15 14 13 15 15 13 14 15 15 15 4 5 5 5 5 5 Class Distribution -------------------- 21% | Hacker-Skirmisher 18% | Mutant 13% | Skirmisher 10% | Wizard-Mutant 8% | Scavenger-Mutant 7% | Hacker-Scout 5% | Hacker-Mutant 5% | Commander-Scout 3% | Commander-Ninja Dominant Class ---------------- Mutant | -10/Materials Mutant | -10/Mines Mutant | -10/Exiles Mutant | -9/Mines Skirmisher | -8/Materials Skirmisher | -7/Factory Hacker-Skirmisher | -7/Waste Hacker-Skirmisher | -7/Factory Hacker-Skirmisher | -7/DSF Hacker-Skirmisher | -6/Factory Hacker-Skirmisher | -6/Waste Hacker-Skirmisher | -6/Factory Hacker-Skirmisher | -6/DSF Hacker-Skirmisher | -5/Factory Hacker-Skirmisher | -5/Waste Hacker-Skirmisher | -5/Factory Hacker-Mutant | -5/DSF Hacker-Scout | -4/Factory Commander-Scout | -4/Extension Hacker-Scout | -4/Cetus Hacker-Scout | -4/Archives Scavenger-Scout | -4/Hub_04(d) Wizard-Mutant | -3/Research Wizard-Gladiator | -3/Quarantine Wizard-Mutant | -3/Section 7 Wizard-Mutant | -2/Research Wizard-Mutant | -1/Access Resources | -11 -10 -10 -10 -9 -8 -7 -7 -7 -7 -6 -6 -6 -6 -5 -5 -5 -5 -4 -4 -4 -4 -4 -3 -3 -3 -2 -1 ----------- Run | Scr Mat Min Exi Min Mat Fac Was Fac DSF Fac Was Fac DSF Fac Was Fac DSF Fac Ext Cet Arc Hub Res Qua Sec Res Acc Matter Collected 2664 | 257 70 19 . 53 20 287 55 15 78 . 20 . . 34 26 . 273 157 354 172 36 275 399 . . 64 . Remotely . | . . . . . . . . . . . . . . . . . . . . . . . . . . . . Salvage Created 7713 | . 354 . . 74 189 1647 691 70 441 . 807 . 109 69 307 62 975 212 433 450 . 619 90 50 . 64 . Parts 357 | . 20 . . 4 14 126 2 3 26 . 8 . 7 9 . 2 36 14 21 13 . 40 5 4 . 3 . Haulers Intercepted 2 | . . . . . . 1 . . . . . . . . . . 1 . . . . . . . . . . Recyclers Shooed 5 | . . . . . . 5 . . . . . . . . . . . . . . . . . . . . . Parts Field Recycled . | . . . . . . . . . . . . . . . . . . . . . . . . . . . . Retrieved Matter . | . . . . . . . . . . . . . . . . . . . . . . . . . . . . Parts Self-Destructed . | . . . . . . . . . . . . . . . . . . . . . . . . . . . . Prevented . | . . . . . . . . . . . . . . . . . . . . . . . . . . . . Kills | -11 -10 -10 -10 -9 -8 -7 -7 -7 -7 -6 -6 -6 -6 -5 -5 -5 -5 -4 -4 -4 -4 -4 -3 -3 -3 -2 -1 ------- Run | Scr Mat Min Exi Min Mat Fac Was Fac DSF Fac Was Fac DSF Fac Was Fac DSF Fac Ext Cet Arc Hub Res Qua Sec Res Acc Combat Hostiles Destroyed 82 | . 8 . . 2 4 14 4 1 11 . 3 . 1 4 1 1 9 1 4 7 . 6 1 . . . . Melee 3 | . . . . . . . . . . . . . . . . . 1 . 2 . . . . . . . . Guns 24 | . 8 . . 2 . 2 . . . . . . . . . . 1 . . 4 . 6 1 . . . . Cannons 53 | . . . . . 4 12 4 1 11 . 3 . 1 4 1 1 7 1 1 2 . . . . . . . AOE 1 | . . . . . . . . . . . . . . . . . . . 1 . . . . . . . . Classes Destroyed 16 | . 4 . . . 3 5 1 . 2 . . . . . . . . . . . . . . 1 . . . Worker 14 | . . . . . . 10 . . . . . . . 1 . . . 1 . . . 1 . . . 1 . Builder 15 | . . . . . . 12 . . . . . . . . . . . 1 . . . 2 . . . . . Tunneler 1 | . . . . . . 1 . . . . . . . . . . . . . . . . . . . . . Hauler 2 | . . . . . . 1 . . . . . . . . . . 1 . . . . . . . . . . Recycler 8 | . 1 . . . . 5 . . . . . . . . . . . 1 1 . . . . . . . . Operator 8 | . 1 . . . . 2 . 1 . . . . . 1 . . . . 1 . . 2 . . . . . Watcher 8 | . . . . . 1 3 . . . . . . . . . . . 1 . . . 2 . . . 1 . Swarmer 12 | . 3 . . . . 4 . . . . . . . 3 . . . . . 2 . . . . . . . Grunt 35 | . 5 . . 2 4 8 . . 7 . . . . . . . 5 . 3 1 . . . . . . . Researcher 1 | . . . . . . . . . . . . . . . . . . . . . . . . 1 . . . Sentry 10 | . . . . . 1 2 . 1 . . . . . . . 1 . 1 . . . 3 1 . . . . Specialist 6 | . . . . . . . . . 3 . . . . . . . 3 . . . . . . . . . . Hunter 4 | . . . . . 1 . . . . . . . . 1 . . . . 1 . . 1 . . . . . Programmer 3 | . . . . . . 1 . . . . . . . . . . . . . . . 2 . . . . . Heavy 3 | . . . . . . . . . 1 . . . 1 . . . 1 . . . . . . . . . . Compactor 8 | . . . . . . . 4 . . . 3 . . . 1 . . . . . . . . . . . . Cetus Guard 4 | . . . . . . . . . . . . . . . . . . . . 4 . . . . . . . Wasp 2 | . . . . . . . . . . . 2 . . . . . . . . . . . . . . . . Thug 1 | . . . . . . . . . . . 1 . . . . . . . . . . . . . . . . Best Kill Streak 10 | . 6 . . 2 2 10 1 1 6 . 2 . 1 4 1 1 4 5 2 3 . 3 1 1 . 1 . Combat Bots Only 6 | . 3 . . 2 2 3 1 1 6 . 2 . 1 3 1 1 3 1 2 3 . 2 1 . . . . Max Kills in Single Turn 3 | . 1 . . 1 1 3 1 1 1 . 1 . 1 1 1 1 1 2 1 2 . 2 1 1 . 1 . Gunslinging . | . . . . . . . . . . . . . . . . . . . . . . . . . . . . Exploded 1 | . . . . . . . . . . . . . . . . . . . 1 . . . . . . . . Melee 1 | . . . . . . . . . . . . . . . . . 1 . 1 . . . . . . . . Uniques/NPCs Destroyed . | . . . . . . . . . . . . . . . . . . . . . . . . . . . . Combat | -11 -10 -10 -10 -9 -8 -7 -7 -7 -7 -6 -6 -6 -6 -5 -5 -5 -5 -4 -4 -4 -4 -4 -3 -3 -3 -2 -1 -------- Run | Scr Mat Min Exi Min Mat Fac Was Fac DSF Fac Was Fac DSF Fac Was Fac DSF Fac Ext Cet Arc Hub Res Qua Sec Res Acc Damage Taken 9300 | . 407 . . 115 163 552 . 5 160 . . . 723 255 . . 1234 485 604 687 164 1997 248 792 618 91 . Core 1599 | . 104 . . 36 2 65 . . 17 . . . 86 12 . . 181 84 98 93 . 610 72 98 41 . . Absorbed by Shields 136 | . . . . . . . . . . . . . 20 . . . . . 112 4 . . . . . . . Redirected to Core 100 | . . . . . . . . . . . . . . . . . . . . . . . . 59 41 . . Regen/Repaired (Parts) 221 | . . . . . . . . . . . . . . . . . . 27 25 . . . 87 82 . . . Core Remaining (%) 80 | 100 . . . 44 99 . . . 88 . . . 89 . . . 80 . . . . 23 . . 78 100 100 Volleys Fired 303 | . 37 . . 6 . 92 . . . . . . . . . . 25 8 24 21 4 56 3 12 . 9 6 Largest 3 | . 2 . . 2 . 3 . . . . . . . . . . 3 1 3 3 3 3 3 2 . 1 1 Hottest 341 | . 70 . . 70 . 130 . . . . . . . . . . 214 98 164 277 196 341 208 114 . 94 94 Shots Fired 765 | . 74 2 . 10 22 202 52 4 34 . 20 . 5 23 7 2 64 8 33 45 12 108 9 13 1 9 6 Gun 475 | . 74 2 . 10 . 164 . . . . . . . . . . 32 . 13 32 12 108 6 13 1 8 . Cannon 287 | . . . . . 22 37 52 4 34 . 20 . 5 23 7 2 32 8 18 13 . . 3 . . 1 6 Launcher 2 | . . . . . . . . . . . . . . . . . . . 2 . . . . . . . . Special 1 | . . . . . . 1 . . . . . . . . . . . . . . . . . . . . . Kinetic 405 | . 37 . . 7 22 37 52 4 34 . 20 . 5 23 7 2 27 7 13 18 4 63 3 11 1 8 . Thermal 156 | . 37 2 . 3 . 5 . . . . . . . . . . 12 1 18 20 8 45 3 2 . . . Explosive 2 | . . . . . . . . . . . . . . . . . . . 2 . . . . . . . . Electromagnetic 202 | . . . . . . 160 . . . . . . . . . . 25 . . 7 . . 3 . . 1 6 Robot Hit Streak 25 | . 8 4 . 5 7 12 22 25 8 . 12 . 12 13 6 5 11 5 6 8 19 12 9 2 1 4 2 Robot Miss Streak 6 | . 3 . . 2 1 5 1 1 5 . 1 . . 1 1 . 2 1 2 6 1 6 . 6 . 1 2 Penetration Max 1 | . . . . . . . . . . . . . . . . . 1 1 . 1 1 1 . 1 . . . Secondary Targets 3 | . 2 . . . . . . . . . . . . . . . . . . . . 1 . . . . . Max Gunslinging Chain 1 | . 1 . . . . . . . . . . . . . . . . . . . . 1 . . . . . Autonomous 201 | . . . . . 22 29 52 4 34 . 20 . 5 23 7 2 3 . . . . . . . . . . Shots Hit Robots 540 | . 44 1 . 7 17 129 48 3 23 . 18 . 5 20 6 2 46 8 62 24 11 45 7 5 1 6 2 Core Hits 223 | . 23 . . 3 5 65 5 1 11 . 6 . 1 5 1 1 21 9 12 13 4 27 3 3 1 3 . Critical Kills 12 | . . . . . . . . . . . . . . . . . 6 1 . 2 . 3 . . . . . Critical Parts Destroyed 13 | . 1 . . . . . . . . . . . . . . . 8 1 . 1 . 1 . . . 1 . Critical Strikes 40 | . 4 . . 1 1 1 . . . . . . . 3 . . 15 3 . 3 1 7 . . . 1 . Burn 7 | . 3 . . 1 . . . . . . . . . . . . . . . . . 3 . . . . . Meltdown 1 | . . . . . . . . . . . . . . . . . . . . 1 . . . . . . . Destroy 26 | . 1 . . . . . . . . . . . . . . . 14 3 . 2 1 4 . . . 1 . Blast 6 | . . . . . 1 1 . . . . . . . 3 . . 1 . . . . . . . . . . Melee Attacks 91 | . . . . . . . . 1 . . . . . . . . 3 4 64 . . 2 9 8 . . . Kinetic 3 | . . . . . . . . . . . . . . . . . . . . . . . . 3 . . . Impact 21 | . . . . . . . . 1 . . . . . . . . . . 7 . . 2 9 2 . . . Slashing 26 | . . . . . . . . . . . . . . . . . 3 4 16 . . . . 3 . . . Piercing . | . . . . . . . . . . . . . . . . . . . . . . . . . . . . Sneak Attacks 47 | . . . . . . . . . . . . . . . . . 1 . 45 . . . . 1 . . . Combat Hostiles 3 | . . . . . . . . . . . . . . . . . . . 3 . . . . . . . . Follow-up Attacks . | . . . . . . . . . . . . . . . . . . . . . . . . . . . . Damage Inflicted 21122 | . 464 . . 71 1172 3712 4071 168 1440 . 1491 . 344 962 506 98 1275 432 1182 790 323 1800 184 348 37 164 88 Guns 5114 | . 464 . . 71 . 1282 . . . . . . . . . . 459 . 198 489 323 1419 116 140 32 121 . Cannons 13638 | . . . . . 1172 2094 4071 168 1440 . 1491 . 344 962 506 98 431 131 230 301 . . 68 . . 43 88 Explosions 1476 | . . . . . . 325 . . . . . . . . . . 209 216 345 . . 381 . . . . . Melee 853 | . . . . . . . . . . . . . . . . . 176 85 409 . . . . 183 . . . Ramming 41 | . . . . . . 11 . . . . . . . . . . . . . . . . . 25 5 . . Kinetic 14716 | . 187 . . 34 1172 2090 4071 168 1440 . 1491 . 344 962 506 98 368 99 198 276 113 785 46 115 32 121 . Thermal 2670 | . 277 . . 37 . 360 . . . . . . . . . . 334 32 230 461 210 634 70 25 . . . Explosive 561 | . . . . . . . . . . . . . . . . . . 216 345 . . . . . . . . Electromagnetic 2281 | . . . . . . 1251 . . . . . . . . . . 397 . . 53 . 381 68 . . 43 88 Impact 67 | . . . . . . . . . . . . . . . . . . . 67 . . . . . . . . Slashing 786 | . . . . . . . . . . . . . . . . . 176 85 342 . . . . 183 . . . Piercing . | . . . . . . . . . . . . . . . . . . . . . . . . . . . . Highest Corruption 46 | . 2 2 2 2 . 2 16 16 22 . . . . . . . 1 1 1 1 1 46 3 3 4 . . Average Corruption 2 | . 2 2 2 2 . 1 11 16 20 . . . . . . . 1 1 1 1 1 1 3 3 3 . . Corruption Purged . | . . . . . . . . . . . . . . . . . . . . . . . . . . . . Corruption Blocked . | . . . . . . . . . . . . . . . . . . . . . . . . . . . . Effects 87 | . 4 9 4 4 . 13 6 5 10 . . . . . . . . . 10 3 . 7 3 5 4 . . Message Errors 18 | . 2 1 1 . . 6 . . 2 . . . . . . . . . 2 2 . 1 . 1 . . . Matter Fused 20 | . 1 2 2 . . 1 2 2 3 . . . . . . . . . 3 . . 1 . 1 2 . . Heat Flow Errors 11 | . . 1 1 1 . 1 1 1 1 . . . . . . . . . 2 . . . . 1 1 . . Energy Discharges 13 | . . 3 . . . . . 1 2 . . . . . . . . . 2 . . 4 1 . . . . Data Loss (minor) 11 | . . . . 3 . 4 1 1 1 . . . . . . . . . . . . . 1 . . . . Data Loss (major) 5 | . 1 . . . . . . . 1 . . . . . . . . . . . . 1 1 1 . . . Misfires 4 | . . 2 . . . 1 . . . . . . . . . . . . . . . . . . 1 . . Alerts 4 | . . . . . . . 2 . . . . . . . . . . . . 1 . . . 1 . . . Weapon Failures 1 | . . . . . . . . . . . . . . . . . . . 1 . . . . . . . . Overload Shots 6 | . . . . . . . . . . . . . . . . . . . . . . 6 . . . . . Effects 1 | . . . . . . . . . . . . . . . . . . . . . . 1 . . . . . Energy Bleed 1 | . . . . . . . . . . . . . . . . . . . . . . 1 . . . . . Overflow Damage 960 | . . . . . 175 344 . 63 54 . . . 77 131 . . 23 . 64 . . 21 . . . . 8 Projectiles 843 | . . . . . 175 312 . 63 54 . . . 77 131 . . 23 . . . . . . . . . 8 Explosions 57 | . . . . . . 32 . . . . . . . . . . . . 4 . . 21 . . . . . Melee 60 | . . . . . . . . . . . . . . . . . . . 60 . . . . . . . . Knockbacks 30 | . . . . . 4 12 . . 3 . . . 1 5 . . 5 . . . . . . . . . . Impact . | . . . . . . . . . . . . . . . . . . . . . . . . . . . . Kinetic 27 | . . . . . 3 10 . . 3 . . . 1 5 . . 5 . . . . . . . . . . Secondary 3 | . . . . . 1 2 . . . . . . . . . . . . . . . . . . . . . Self-Inflicted Damage 218 | . . . . . . . . . . . . . . . . . . . 39 . . 165 . 12 2 . . Shots 3 | . . . . . . . . . . . . . . . . . . . 1 . . 2 . . . . . Rammed 6 | . . . . . . 3 . . . . . . . . . . . . . . . . . 2 1 . . Targets Rammed 6 | . . . . . . 3 . . . . . . . . . . . . . . . . . 2 1 . . Kicked . | . . . . . . . . . . . . . . . . . . . . . . . . . . . . Crushed . | . . . . . . . . . . . . . . . . . . . . . . . . . . . . Highest Temperature 425 | . 222 219 201 249 . 237 235 164 159 . . . . . . . 425 270 336 304 187 420 324 71 273 350 304 Average Temperature 79 | . 67 88 107 81 . 49 123 94 87 . . . . . . . 125 42 89 111 105 80 123 21 95 105 80 Received Heat Transfer 1431 | . 162 . . 66 18 186 . . 45 . . . . . . . 436 66 175 9 18 55 18 150 27 . . Effects 15 | . 1 . . . . . . . . . . . . . . . . . 4 . . 3 3 . 2 2 . Shutdowns 1 | . . . . . . . . . . . . . . . . . . . . . . . . . . 1 . Energy Bleed 3 | . 1 . . . . . . . . . . . . . . . . . 1 . . . . . . 1 . Interference 8 | . . . . . . . . . . . . . . . . . . . 3 . . . 3 . 2 . . Damage (major) 3 | . . . . . . . . . . . . . . . . . . . . . . 3 . . . . . Siege Activations 1 | . . . . . . . . . 1 . . . . . . . . . . . . . . . . . . Total Turns 5 | . . . . . . . . . 5 . . . . . . . . . . . . . . . . . . Longest Duration 5 | . . . . . . . . . 5 . . . . . . . . . . . . . . . . . . Robots Corrupted 1 | . . . . . . 1 . . . . . . . . . . . . . . . . . . . . . Combat Hostiles . | . . . . . . . . . . . . . . . . . . . . . . . . . . . . Parts Fried 10 | . . . . . . 3 . . . . . . . . . . 1 . 3 1 . 2 . . . . . Impact Corruptions 2 | . . . . . 1 . . . . . . . . . . . . . 1 . . . . . . . . Robots Melted 1 | . . . . . . . . . . . . . . . . . . . . 1 . . . . . . . Combat Hostiles 1 | . . . . . . . . . . . . . . . . . . . . 1 . . . . . . . Parts Melted 6 | . 3 . . . . . . . . . . . . . . . . . . 3 . . . . . . . Heat Transferred 4671 | . 1036 . . 185 . 424 . . . . . . . . . . 324 50 350 709 296 1149 111 37 . . . Parts Sabotaged . | . . . . . . . . . . . . . . . . . . . . . . . . . . . . Parts Stolen . | . . . . . . . . . . . . . . . . . . . . . . . . . . . . Parts Stripped . | . . . . . . . . . . . . . . . . . . . . . . . . . . . . Power Chain Reactions 6 | . . . . . . 5 . . . . . . . . . . 1 . . . . . . . . . . Missiles Intercepted . | . . . . . . . . . . . . . . . . . . . . . . . . . . . . Alert | -11 -10 -10 -10 -9 -8 -7 -7 -7 -7 -6 -6 -6 -6 -5 -5 -5 -5 -4 -4 -4 -4 -4 -3 -3 -3 -2 -1 ------- Run | Scr Mat Min Exi Min Mat Fac Was Fac DSF Fac Was Fac DSF Fac Was Fac DSF Fac Ext Cet Arc Hub Res Qua Sec Res Acc Peak Influence 2254 | . 202 27 . 60 231 398 92 125 368 223 121 79 90 198 71 81 294 413 637 851 604 941 505 2254 1630 1107 695 Initial 1267 | . . 27 . . 23 11 91 63 87 193 78 79 55 42 69 49 56 154 197 356 340 211 493 . 1267 1100 656 Average 276 | . 98 14 . 8 92 152 89 89 201 203 99 79 76 92 69 63 201 197 283 698 564 424 197 1846 1599 1048 666 Maximum Alert Level 5 | . 1 . . . 1 1 . . 1 1 . . . . . . 1 2 2 3 2 3 2 5 5 4 2 Low Security (%) 63 | 100 93 100 . 100 98 67 100 100 59 63 100 100 100 100 100 100 46 86 42 . . 18 52 . . . . Level 1 17 | . 6 . . . 1 32 . . 40 36 . . . . . . 53 4 30 8 8 30 24 . . . . Level 2 11 | . . . . . . . . . . . . . . . . . . 8 26 28 91 42 22 . . . 100 Level 3 3 | . . . . . . . . . . . . . . . . . . . . 63 . 8 . . . 64 . Level 4 . | . . . . . . . . . . . . . . . . . . . . . . . . . . 35 . Level 5 . | . . . . . . . . . . . . . . . . . . . . . . . . . . . . High Security . | . . . . . . . . . . . . . . . . . . . . . . . . . . . . Max Security 4 | . . . . . . . . . . . . . . . . . . . . . . . . 99 99 . . Sterilizations 2 | . . . . . . . . . 1 . . . . . . . 1 . . . . . . . . . . Squads Dispatched 65 | . 2 . . . 1 12 . . 1 . . 1 . . . . 2 1 1 1 . 13 9 12 6 3 . Investigation 17 | . 1 . . . . . . . . . . . . . . . . 1 . 1 . 7 6 . . 1 . Extermination 4 | . . . . . . 2 . . . . . 1 . . . . . . . . . 1 . . . . . Reinforcement 24 | . 1 . . . 1 9 . . 1 . . . . . . . 2 . 1 . . 5 3 . . 1 . Assault 19 | . . . . . . . . . . . . . . . . . . . . . . . . 12 6 1 . Garrison 1 | . . . . . . 1 . . . . . . . . . . . . . . . . . . . . . Intercept . | . . . . . . . . . . . . . . . . . . . . . . . . . . . . Searches Triggered . | . . . . . . . . . . . . . . . . . . . . . . . . . . . . Construction Impeded 4 | . . . . . . 3 . . . . . . . . . . . . . . . 1 . . . . . Haulers Reinforced 2 | . . . . . . 2 . . . . . . . . . . . . . . . . . . . . . Active Scanning Responses . | . . . . . . . . . . . . . . . . . . . . . . . . . . . . Cargo Convoy Interrupts . | . . . . . . . . . . . . . . . . . . . . . . . . . . . . Stealth | -11 -10 -10 -10 -9 -8 -7 -7 -7 -7 -6 -6 -6 -6 -5 -5 -5 -5 -4 -4 -4 -4 -4 -3 -3 -3 -2 -1 --------- Run | Scr Mat Min Exi Min Mat Fac Was Fac DSF Fac Was Fac DSF Fac Was Fac DSF Fac Ext Cet Arc Hub Res Qua Sec Res Acc Distress Signals 19 | . . . . . . 1 . . . . . . . . . . . 1 2 2 . 3 7 . 1 2 . Communications Jammed 27 | . . . . . . . . . . . . . 4 . . . . . 22 . . . . 1 . . . Distress Signals 23 | . . . . . . . . . . . . . . . . . . . 22 . . . . 1 . . . Times Spotted 287 | . 11 . . 3 10 27 5 1 10 1 6 . 1 3 2 . 12 7 23 25 7 33 6 53 37 4 . Peak Tracking Total 34 | . 3 . . 2 3 5 3 1 4 1 1 1 1 4 1 . 3 4 5 8 2 12 3 21 34 4 . Tactical Retreats 26 | . 1 . . . 1 4 . . 1 . . . . . . . 3 . . . . 4 . 11 . 1 . Traps | -11 -10 -10 -10 -9 -8 -7 -7 -7 -7 -6 -6 -6 -6 -5 -5 -5 -5 -4 -4 -4 -4 -4 -3 -3 -3 -2 -1 ------- Run | Scr Mat Min Exi Min Mat Fac Was Fac DSF Fac Was Fac DSF Fac Was Fac DSF Fac Ext Cet Arc Hub Res Qua Sec Res Acc Traps Triggered 21 | . 1 . . . 2 5 . . 2 1 . . 1 2 . . 1 1 2 . . 1 1 . . 1 . Indirectly . | . . . . . . . . . . . . . . . . . . . . . . . . . . . . Trap Hack Attempts 28 | . . . . . . . . . . . . . . . . . . . 28 . . . . . . . . Triggered . | . . . . . . . . . . . . . . . . . . . . . . . . . . . . Disarmed . | . . . . . . . . . . . . . . . . . . . . . . . . . . . . Reprogrammed 3 | . . . . . . . . . . . . . . . . . . . 3 . . . . . . . . Reused . | . . . . . . . . . . . . . . . . . . . . . . . . . . . . Traps Extracted . | . . . . . . . . . . . . . . . . . . . . . . . . . . . . Installed . | . . . . . . . . . . . . . . . . . . . . . . . . . . . . Triggered 3 | . . . . . . 3 . . . . . . . . . . . . . . . . . . . . . Machines | -11 -10 -10 -10 -9 -8 -7 -7 -7 -7 -6 -6 -6 -6 -5 -5 -5 -5 -4 -4 -4 -4 -4 -3 -3 -3 -2 -1 ---------- Run | Scr Mat Min Exi Min Mat Fac Was Fac DSF Fac Was Fac DSF Fac Was Fac DSF Fac Ext Cet Arc Hub Res Qua Sec Res Acc Machines Disabled 46 | . . . . . . 3 . . . . . . . 1 . . . 9 2 . 5 21 . 4 . . 1 Max in Single Turn 9 | . . . . . . 1 . . . . . . . 1 . . . 4 1 . 2 9 . 1 . . 1 Garrison Access 5 | . . . . . . 3 . . . . . 1 . . . . . . . . . . . . . . 1 Network Hub 4 | . . . . . . . . . . . . . . . . . . . . . . 4 . . . . . Machines Sabotaged 2 | . . . . . . . . . . . . . . . . . . . . . . 2 . . . . . Garrisons Compromised . | . . . . . . . . . . . . . . . . . . . . . . . . . . . . Overloaded Fab Kills . | . . . . . . . . . . . . . . . . . . . . . . . . . . . . Hacking | -11 -10 -10 -10 -9 -8 -7 -7 -7 -7 -6 -6 -6 -6 -5 -5 -5 -5 -4 -4 -4 -4 -4 -3 -3 -3 -2 -1 --------- Run | Scr Mat Min Exi Min Mat Fac Was Fac DSF Fac Was Fac DSF Fac Was Fac DSF Fac Ext Cet Arc Hub Res Qua Sec Res Acc Machines Accessed 66 | . 3 . 2 1 3 7 . 1 . . . 2 . 2 . 3 . 4 12 2 1 9 8 . . 3 3 Terminals 43 | . 3 . . 1 3 1 . 1 . . . 1 . . . 1 . 3 11 2 . 9 2 . . 3 2 Fabricators 8 | . . . . . . 3 . . . . . . . 2 . . . . . . . . 3 . . . . Repair Stations 3 | . . . . . . . . . . . . . . . . . . 1 1 . . . 1 . . . . Recycling Units 1 | . . . . . . . . . . . . . . . . . . . . . . . 1 . . . . Scanalyzers 2 | . . . . . . . . . . . . . . . . 1 . . . . . . 1 . . . . Garrison Access 6 | . . . . . . 3 . . . . . 1 . . . 1 . . . . . . . . . . 1 Total Hacks 222 | . 11 . 5 1 8 11 . 1 . . . 2 . 4 . 17 . 17 41 8 14 28 28 . . 17 9 Successful 162 | . 3 . 5 1 4 10 . 1 . . . 2 . 3 . 16 . 10 25 5 14 23 26 . . 10 4 Failed 59 | . 8 . . . 3 1 . . . . . . . 1 . 1 . 7 16 3 . 5 2 . . 7 5 Catastrophic 6 | . 1 . . . . . . . . . . . . . . . . . 1 . . . . . . . 4 Database Lockouts 1 | . . . . . 1 . . . . . . . . . . . . . . . . . . . . . . Manual 85 | . 10 . 1 . 5 3 . . . . . . . . . 5 . 7 13 1 . 22 2 . . 10 6 Terminals 147 | . 11 . . 1 8 2 . 1 . . . 1 . . . 1 . 15 39 8 . 28 7 . . 17 8 Fabricators 19 | . . . . . . 3 . . . . . . . 4 . . . . . . . . 12 . . . . Repair Stations 6 | . . . . . . . . . . . . . . . . . . 2 2 . . . 2 . . . . Recycling Units 3 | . . . . . . . . . . . . . . . . . . . . . . . 3 . . . . Scanalyzers 15 | . . . . . . . . . . . . . . . . 11 . . . . . . 4 . . . . Garrison Access 13 | . . . . . . 6 . . . . . 1 . . . 5 . . . . . . . . . . 1 Terminal Hacks 93 | . 2 . 5 1 3 2 . 1 . . . 1 . . . 1 . 6 21 5 14 13 6 . . 9 3 Record 25 | . . . 4 . . . . . . . . . . . . . . . 1 4 14 1 . . . 1 . Part Schematic 6 | . . . . . 1 . . . . . . . . . . . . 1 4 . . . . . . . . Robot Schematic 1 | . 1 . . . . . . . . . . . . . . . . . . . . . . . . . . Robot Analysis 1 | . . . . . . . . . . . . . . . . . . . . . . . 1 . . . . Prototype ID Bank 2 | . 1 . . . . . . . . . . . . . . . . . 1 . . . . . . . . Open Door 6 | . . . . . . . . . . . . . . . . . . . 5 1 . . . . . . . Open DSF 5 | . . . . . . . . 1 . . . 1 . . . 1 . . . . . . 1 . . 1 . Level Access Points 5 | . . . . . 1 . . . . . . . . . . . . 1 . . . 1 . . . 1 1 Branch Access Points 3 | . . . . . . . . . . . . . . . . . . 1 1 . . . . . . 1 . Emergency Access Points 2 | . . . . . . . . . . . . . . . . . . . . . . 1 . . . 1 . Machine Index 3 | . . . . . . . . . . . . . . . . . . 1 . . . . 1 . . . 1 Terminal Index 3 | . . . . . . . . . . . . . . . . . . . 1 . . 1 . . . 1 . Alert Level 10 | . . . . . . 1 . . . . . . . . . . . . 2 . . 3 1 . . 2 1 Unreport Threat 14 | . . . . . 1 1 . . . . . . . . . . . . 5 . . 4 2 . . 1 . Locate Traps 1 | . . . . . . . . . . . . . . . . . . . 1 . . . . . . . . Recall Investigation 1 | . . . . . . . . . . . . . . . . . . 1 . . . . . . . . . Registered Components 1 | . . . . . . . . . . . . . . . . . . 1 . . . . . . . . . Zone Layout 3 | . . . . 1 . . . . . . . . . . . . . . . . . 2 . . . . . EX-Prototype ID Bank 1 | . . . 1 . . . . . . . . . . . . . . . . . . . . . . . . Fabricator Hacks 16 | . . . . . . 3 . . . . . . . 3 . . . . . . . . 10 . . . . Network Status 3 | . . . . . . 1 . . . . . . . 1 . . . . . . . . 1 . . . . Load Schematic 5 | . . . . . . 1 . . . . . . . . . . . . . . . . 4 . . . . Build 8 | . . . . . . 1 . . . . . . . 2 . . . . . . . . 5 . . . . Repair Station Hacks 6 | . . . . . . . . . . . . . . . . . . 2 2 . . . 2 . . . . Scan Component 3 | . . . . . . . . . . . . . . . . . . 1 1 . . . 1 . . . . Repair 3 | . . . . . . . . . . . . . . . . . . 1 1 . . . 1 . . . . Recycling Unit Hacks 2 | . . . . . . . . . . . . . . . . . . . . . . . 2 . . . . Report Inventory 1 | . . . . . . . . . . . . . . . . . . . . . . . 1 . . . . Retrieve Components 1 | . . . . . . . . . . . . . . . . . . . . . . . 1 . . . . Scanalyzer 15 | . . . . . . . . . . . . . . . . 11 . . . . . . 4 . . . . Insert Component 7 | . . . . . . . . . . . . . . . . 5 . . . . . . 2 . . . . Analyze 8 | . . . . . . . . . . . . . . . . 6 . . . . . . 2 . . . . Garrison Access Hacks 5 | . . . . . . 3 . . . . . 1 . . . . . . . . . . . . . . 1 Seal Access 5 | . . . . . . 3 . . . . . 1 . . . . . . . . . . . . . . 1 Unauthorized Hacks 25 | . 1 . . . 1 2 . . . . . . . . . 4 . 2 2 . . 10 2 . . 1 . Terminals 17 | . 1 . . . 1 . . . . . . . . . . . . 2 2 . . 10 . . . 1 . Botnet 7 | . 1 . . . 1 . . . . . . . . . . . . 1 2 . . 1 . . . 1 . Detonate 2 | . . . . . . . . . . . . . . . . . . . . . . 2 . . . . . Operators 1 | . . . . . . . . . . . . . . . . . . 1 . . . . . . . . . Sabotage 7 | . . . . . . . . . . . . . . . . . . . . . . 7 . . . . . Fabricators 1 | . . . . . . . . . . . . . . . . . . . . . . . 1 . . . . Prioritize 1 | . . . . . . . . . . . . . . . . . . . . . . . 1 . . . . Repair Stations . | . . . . . . . . . . . . . . . . . . . . . . . . . . . . Recycling Units 1 | . . . . . . . . . . . . . . . . . . . . . . . 1 . . . . Recyclers 1 | . . . . . . . . . . . . . . . . . . . . . . . 1 . . . . Scanalyzers . | . . . . . . . . . . . . . . . . . . . . . . . . . . . . Garrison Access 6 | . . . . . . 2 . . . . . . . . . 4 . . . . . . . . . . . Broadcast 2 | . . . . . . 1 . . . . . . . . . 1 . . . . . . . . . . . Decoy 2 | . . . . . . 1 . . . . . . . . . 1 . . . . . . . . . . . Reprogram 1 | . . . . . . . . . . . . . . . . 1 . . . . . . . . . . . Watchers 1 | . . . . . . . . . . . . . . . . 1 . . . . . . . . . . . Data Cores Recovered 2 | . . . . . . 1 . . . . . . . . . . . . . . . 1 . . . . . Used 1 | . . . . . . 1 . . . . . . . . . . . . . . . . . . . . . Hacking Detections 35 | . 4 . . 1 2 3 . . . . . . . 1 . 2 . 3 5 2 . 3 5 . . 2 2 Full Trace Events 8 | . 1 . . . 1 . . . . . . . . . . . . 1 . 1 . . 3 . . 1 . Feedback Events . | . . . . . . . . . . . . . . . . . . . . . . . . . . . . Feedback Blocked . | . . . . . . . . . . . . . . . . . . . . . . . . . . . . Robot Schematics Acquired 1 | . 1 . . . . . . . . . . . . . . . . . . . . . . . . . . Robots Built 4 | . . . . . . 4 . . . . . . . . . . . . . . . . . . . . . Authchips . | . . . . . . . . . . . . . . . . . . . . . . . . . . . . Time 134 | . . . . . . 134 . . . . . . . . . . . . . . . . . . . . . Total Robot Build Rating 16 | . . . . . . 16 . . . . . . . . . . . . . . . . . . . . . Part Schematics Acquired 13 | . . . . . 1 . . . . . . . . . . 4 . 1 4 . . . 2 1 . . . Parts Built 8 | . . . . . . . . . . . . . . 1 . . . . . . . . 7 . . . . Authchips 1 | . . . . . . . . . . . . . . . . . . . . . . . 1 . . . . Time 414 | . . . . . . . . . . . . . . 127 . . . . . . . . 287 . . . . Total Part Build Rating 66 | . . . . . . . . . . . . . . 9 . . . . . . . . 57 . . . . Parts Repaired 3 | . . . . . . . . . . . . . . . . . . 1 1 . . . 1 . . . . Time 118 | . . . . . . . . . . . . . . . . . . 31 31 . . . 56 . . . . Parts Recycled . | . . . . . . . . . . . . . . . . . . . . . . . . . . . . Recycled Matter . | . . . . . . . . . . . . . . . . . . . . . . . . . . . . Retrieved Matter . | . . . . . . . . . . . . . . . . . . . . . . . . . . . . Retrieved Components 2 | . . . . . . . . . . . . . . . . . . . . . . . 2 . . . . Parts Scanalyzed 6 | . . . . . . . . . . . . . . . . 4 . . . . . . 2 . . . . Part Schematics Acquired 6 | . . . . . . . . . . . . . . . . 4 . . . . . . 2 . . . . Parts Damaged 1 | . . . . . . . . . . . . . . . . . . . . . . . 1 . . . . Bothacking | -11 -10 -10 -10 -9 -8 -7 -7 -7 -7 -6 -6 -6 -6 -5 -5 -5 -5 -4 -4 -4 -4 -4 -3 -3 -3 -2 -1 ------------ Run | Scr Mat Min Exi Min Mat Fac Was Fac DSF Fac Was Fac DSF Fac Was Fac DSF Fac Ext Cet Arc Hub Res Qua Sec Res Acc Used RIF Installer . | . . . . . . . . . . . . . . . . . . . . . . . . . . . . Robots Hacked 2 | . . . . . . . . . . . . . . . . . . . 2 . . . . . . . . Non-combat 2 | . . . . . . . . . . . . . . . . . . . 2 . . . . . . . . Combat . | . . . . . . . . . . . . . . . . . . . . . . . . . . . . Robot Hacks Applied 2 | . . . . . . . . . . . . . . . . . . . 2 . . . . . . . . no_distress 2 | . . . . . . . . . . . . . . . . . . . 2 . . . . . . . . Relay Couplers Released 3 | . . . . . . . . . . . . . . . . . . . . . . . 3 . . . . Programmers 3 | . . . . . . . . . . . . . . . . . . . . . . . 3 . . . . Fabnet Peak Effective % . | . . . . . . . . . . . . . . . . . . . . . . . . . . . . Robots Rewired 26 | . . . . . . 2 . . . . . . . . . . . . 24 . . . . . . . . Allies Hacked . | . . . . . . . . . . . . . . . . . . . . . . . . . . . . Hacks Repelled . | . . . . . . . . . . . . . . . . . . . . . . . . . . . . Allies | -11 -10 -10 -10 -9 -8 -7 -7 -7 -7 -6 -6 -6 -6 -5 -5 -5 -5 -4 -4 -4 -4 -4 -3 -3 -3 -2 -1 -------- Run | Scr Mat Min Exi Min Mat Fac Was Fac DSF Fac Was Fac DSF Fac Was Fac DSF Fac Ext Cet Arc Hub Res Qua Sec Res Acc Total Allies 68 | . . 3 . 2 . 6 1 . . . 19 . . . . . . . 32 5 . . . . . . . Largest Group 20 | . . 3 3 5 5 4 1 . . . 19 11 11 . . . . . 20 14 9 8 . . . . . Highest-Rated Group 893 | . . 40 40 82 82 48 31 . . . 684 435 435 . . . . . 893 737 737 585 . . . . . Highest-Rated Ally 159 | . . 16 16 31 31 31 31 . . . 50 50 50 . . . . . 159 159 141 96 . . . . . Total Orders . | . . . . . . . . . . . . . . . . . . . . . . . . . . . . Ally Attacks 506 | . . . . 11 29 60 8 . . . 74 . 1 . . . . . 172 71 31 49 . . . . . Total Damage 16656 | . . . . 91 323 717 165 . . . 3825 . 38 . . . . . 5867 2004 1394 2232 . . . . . Kills 78 | . . . . . 5 10 . . . . 7 . . . . . . . 30 12 4 10 . . . . . Allies Corrupted . | . . . . . . . . . . . . . . . . . . . . . . . . . . . . Allies Melted . | . . . . . . . . . . . . . . . . . . . . . . . . . . . . Intel | -11 -10 -10 -10 -9 -8 -7 -7 -7 -7 -6 -6 -6 -6 -5 -5 -5 -5 -4 -4 -4 -4 -4 -3 -3 -3 -2 -1 ------- Run | Scr Mat Min Exi Min Mat Fac Was Fac DSF Fac Was Fac DSF Fac Was Fac DSF Fac Ext Cet Arc Hub Res Qua Sec Res Acc Robot Analysis Total 1 | . . . . . . . . . . . . . . . . . . . . . . . 1 . . . . Derelict Logs Recovered 1 | . . 1 . . . . . . . . . . . . . . . . . . . . . . . . . Drone Launches . | . . . . . . . . . . . . . . . . . . . . . . . . . . . . Drone Recoveries . | . . . . . . . . . . . . . . . . . . . . . . . . . . . . Exploration | -11 -10 -10 -10 -9 -8 -7 -7 -7 -7 -6 -6 -6 -6 -5 -5 -5 -5 -4 -4 -4 -4 -4 -3 -3 -3 -2 -1 ------------- Run | Scr Mat Min Exi Min Mat Fac Was Fac DSF Fac Was Fac DSF Fac Was Fac DSF Fac Ext Cet Arc Hub Res Qua Sec Res Acc Turns Passed 11625 | 73 539 766 385 365 535 2232 142 128 255 126 171 349 85 304 381 101 296 268 1182 312 117 732 851 321 144 250 215 Spaces Moved 9337 | 43 260 462 240 215 215 1303 99 87 131 85 104 230 55 199 259 70 145 331 1188 199 121 771 1068 463 174 406 414 Core 9 | 4 . . . . . 1 . . . . . . . . . . . . . . . 4 . . . . . Treads 1925 | 39 260 462 240 215 215 404 . . 39 . . . 1 . . . 13 . . . . 6 31 . . . . Legs . | . . . . . . . . . . . . . . . . . . . . . . . . . . . . Wheels 2273 | . . . . . . 898 99 87 92 85 104 230 54 199 259 70 96 . . . . . . . . . . Hover 5130 | . . . . . . . . . . . . . . . . . 36 331 1188 199 121 761 1037 463 174 406 414 Flight . | . . . . . . . . . . . . . . . . . . . . . . . . . . . . Fastest Speed 36 | 50 160 160 160 160 243 85 140 140 140 145 145 145 145 145 145 145 68 64 56 56 60 48 40 44 44 36 36 Average Speed 98 | 149 160 160 160 160 244 139 140 140 171 145 145 145 146 145 145 145 119 67 60 71 60 61 51 44 66 36 36 Slowest Speed 650 | 160 160 160 160 160 320 650 140 140 240 145 145 145 240 145 145 145 160 134 128 134 60 160 200 160 256 36 36 Overloaded Moves . | . . . . . . . . . . . . . . . . . . . . . . . . . . . . Propulsion Burnouts . | . . . . . . . . . . . . . . . . . . . . . . . . . . . . Robots Hopped . | . . . . . . . . . . . . . . . . . . . . . . . . . . . . Cave-ins Triggered . | . . . . . . . . . . . . . . . . . . . . . . . . . . . . Teleports 1 | . . . . . . . . . . . . . . . . . . . . . . . . 1 . . . Exploration Rate (%) 45 | 4 40 95 62 37 23 41 79 4 89 3 76 8 94 7 95 2 72 11 66 81 89 71 24 63 12 16 15 Regions Visited 27 Branch Regions 9 Pre-discovered Areas 1 | . . . 1 . . . . . . . . . . . . . . . . . . . . . . . . Known Exits Taken 8 | . . . . . 1 . . 1 . . . 1 . . . 1 . 1 1 . . 1 . . . 1 . Unknown Exits Taken 10 | 1 1 1 1 1 . . . . . . . . . . . . . . . 1 1 . 1 1 1 . . Scrap Searched 2 | . . 2 . . . . . . . . . . . . . . . . . . . . . . . . . Spaces Dug 178 | . . . . . . . . 1 . . . . . . . . . 2 15 . . 150 8 2 . . . Terrain Destroyed 455 | . . . . . 8 13 4 3 16 . 3 . 1 8 1 1 4 27 35 7 . 314 8 2 . . . Melee 20 | . . . . . . . . 1 . . . . . . . . . 2 5 . . 2 8 2 . . . Projectile 96 | . . . . . 8 6 4 2 16 . 3 . 1 8 1 1 . . 15 6 . 25 . . . . . AOE 337 | . . . . . . 7 . . . . . . . . . . 4 25 15 . . 286 . . . . . Terrain Rammed . | . . . . . . . . . . . . . . . . . . . . . . . . . . . . Walls Destroyed . | . . . . . . . . . . . . . . . . . . . . . . . . . . . . Machines Disabled . | . . . . . . . . . . . . . . . . . . . . . . . . . . . . Actions | -11 -10 -10 -10 -9 -8 -7 -7 -7 -7 -6 -6 -6 -6 -5 -5 -5 -5 -4 -4 -4 -4 -4 -3 -3 -3 -2 -1 --------- Run | Scr Mat Min Exi Min Mat Fac Was Fac DSF Fac Was Fac DSF Fac Was Fac DSF Fac Ext Cet Arc Hub Res Qua Sec Res Acc Total 11175 | 49 316 488 242 228 227 1543 104 92 165 89 124 245 60 214 264 69 212 358 1605 331 155 931 1342 549 201 499 473 Wait 1027 | . 15 24 . 2 3 81 . 1 14 2 20 16 . 1 . . 2 4 247 87 27 63 216 48 27 73 54 Move 9312 | 42 259 461 239 214 214 1303 98 86 130 85 103 229 54 199 258 69 144 330 1187 198 120 770 1067 462 173 405 413 Hop . | . . . . . . . . . . . . . . . . . . . . . . . . . . . . Pick Up 75 | 1 2 2 1 3 4 11 2 . 5 . 1 . 1 1 2 . 9 3 7 4 1 4 7 1 . 3 . Fast Attach 84 | 6 1 1 . . 1 16 . 1 1 . . . . 1 2 . 7 4 6 4 . 6 21 5 . 1 . Attach 36 | . . . . 3 1 5 1 1 1 2 . . . 2 . . 8 1 . 2 . 5 1 . . 3 . Detach 14 | . . . 2 . 2 1 1 1 . . . . . . . . 1 1 . 1 . . 3 1 . . . Swap 59 | . 1 . . . . 9 . . 1 . . . . 2 . . 3 2 15 6 2 9 2 4 . 3 . Drop 88 | . 1 . . . 2 16 2 1 7 . . . 2 . 2 . 10 1 11 8 1 3 13 6 . 2 . Fire 303 | . 37 . . 6 . 92 . . . . . . . . . . 25 8 24 21 4 56 3 12 . 9 6 Melee 91 | . . . . . . . . 1 . . . . . . . . 3 4 64 . . 2 9 8 . . . Ram 3 | . . . . . . . . . . . . . . . . . . . . . . . . 2 1 . . Kick . | . . . . . . . . . . . . . . . . . . . . . . . . . . . . Crush 3 | . . . . . . 3 . . . . . . . . . . . . . . . . . . . . . Escape Stasis 46 | . . . . . . . . . 6 . . . 3 8 . . . . 16 . . 13 . . . . . Rewire 6 | . . . . . . 6 . . . . . . . . . . . . . . . . . . . . . Trap 28 | . . . . . . . . . . . . . . . . . . . 28 . . . . . . . . Miscellaneous . | . . . . . . . . . . . . . . . . . . . . . . . . . . . . Route ------- -11/Scrapyard -10/Materials (discovered 2 exits: [*Mat] / [*Min]) -10/Mines (discovered 3 exits: [*Mat x2] / *Exi) -10/Exiles -9/Mines -8/Materials (discovered 4 exits: *Fac x3 / Sto) -7/Factory (discovered 4 exits: [*Fac x4]) -7/Waste -7/Factory (discovered 2 exits: [*Fac] / DSF) -7/DSF -6/Factory -6/Waste -6/Factory -6/DSF -5/Factory -5/Waste -5/Factory -5/DSF -4/Factory (discovered 8 exits: Res x4 / Upp x2 / *Ext x2) -4/Extension (discovered 2 exits: *Res / *Cet) -4/Cetus (discovered 2 exits: *Res / *Arc) -4/Archives (discovered 3 exits: *Res / *Hub x2) -4/Hub_04(d) (discovered 4 exits: *Res x4) -3/Research -3/Quarantine -3/Section 7 -2/Research (discovered 5 exits: *Acc x3 / Tes x2) -1/Access To Epsilon Eridani History --------- Turn | Location | Event 11 | -11/Scrapyard | Discovered new exit (range 16) 74 | -11/Scrapyard | Entered Materials 310 | -10/Materials | Build established: Mutant 322 | -10/Materials | Discovered new exit (range 8) 433 | -10/Materials | Discovered new exit (range 13) 613 | -10/Materials | Entered Mines 765 | -10/Mines | Assembled infested the area 969 | -10/Mines | Assisted by bots powering up and referring to "LRC-V3" 1017 | -10/Mines | Discovered new exit (range 5) 1021 | -10/Mines | Received a Rocket Launcher from a helpful Derelict 1284 | -10/Mines | Discovered new exit (range 13) 1371 | -10/Mines | Discovered new exit (range 5) 1379 | -10/Mines | Entered Exiles 1379 | -10/Exiles | Accompanied by 3 allies 1424 | -10/Exiles | Met 8R-AWN 1446 | -10/Exiles | Met EX-HEX 1494 | -10/Exiles | Met EX-BIN 1532 | -10/Exiles | Aligned with FarCom system 1534 | -10/Exiles | Given EX-Vault access code 1571 | -10/Exiles | Opened EX-Vault 1582 | -10/Exiles | Found AWS/Autocannon 1620 | -10/Exiles | Warned to stay clear of 0b10 Research branches 1663 | -10/Exiles | Met EX-DEC 1679 | -10/Exiles | Learned location of Zion (-7) 1740 | -10/Exiles | Discovered new exit (range 14) 1764 | -10/Exiles | Left Exiles lab with AWS/Autocannon 1764 | -10/Exiles | Entered Mines 1764 | -9/Mines | Accompanied by 3 allies 1796 | -9/Mines | Found a damaged Exp. Sensor Array with a note attached 1800 | -9/Mines | Found Prototype Device 1866 | -9/Mines | Joined a pair of Derelicts in attacking an 0b10 outpost 2075 | -9/Mines | Discovered new exit (range 12) 2091 | -9/Mines | Core integrity fell below 50% 2129 | -9/Mines | Entered Materials 2129 | -8/Materials | Accompanied by 5 allies 2129 | -8/Materials | Evolved 4 slots: Propulsion x2, Utility x1, Weapon x1 2130 | -8/Materials | Identified exit to Storage 2134 | -8/Materials | Led the pair of lost Derelicts to an unsafe place 2284 | -8/Materials | Identified exit to Factory 2284 | -8/Materials | Central database locked down 2417 | -8/Materials | Build established: Skirmisher 2664 | -8/Materials | Entered Factory 2664 | -7/Factory | Accompanied by 1 ally 2664 | -7/Factory | Evolved 2 slots: Utility x2 2934 | -7/Factory | Discovered new exit (range 6) 2961 | -7/Factory | Discovered new exit (range 13) 4173 | -7/Factory | Build established: Scavenger-Mutant 4241 | -7/Factory | Fabricated S-27 Virus? 4286 | -7/Factory | P-60 Hacker assimilated allied Virus 4a 4316 | -7/Factory | Discovered new exit (range 13) 4359 | -7/Factory | Garrison activated, responded to threat 4872 | -7/Factory | Lost 3 parts (1n2w) 4892 | -7/Factory | Discovered new exit (range 15) 4896 | -7/Factory | Sucked down chute 4896 | -7/Factory | Entered Waste 4897 | -7/Waste | Met a frightened Derelict 4901 | -7/Waste | Destroyed C-40 Crusher 4911 | -7/Waste | EMP discharged 4911 | -7/Waste | System corruption reached 10% 4928 | -7/Waste | Spotted C-40 Crusher 4940 | -7/Waste | Destroyed C-40 Crusher 4945 | -7/Waste | Spotted C-40 Crusher 4960 | -7/Waste | Spotted C-40 Crusher 4969 | -7/Waste | Destroyed C-40 Crusher 4972 | -7/Waste | Spotted C-40 Crusher 5006 | -7/Waste | Spotted C-40 Crusher 5011 | -7/Waste | EMP discharged 5026 | -7/Waste | Discovered new exit (range 10) 5031 | -7/Waste | Destroyed C-40 Crusher 5038 | -7/Waste | Entered Factory 5128 | -7/Factory | Build established: Hacker-Skirmisher 5163 | -7/Factory | Discovered new exit (range 9) 5166 | -7/Factory | Identified exit to DSF 5166 | -7/Factory | Entered DSF 5207 | -7/DSF | Additional patrols routed to DSF 5374 | -7/DSF | Sterilization system engaged 5394 | -7/DSF | Ambient heat levels rising (+10) 5398 | -7/DSF | Discovered new exit (range 16) 5409 | -7/DSF | Ambient heat levels rising (+10) 5421 | -7/DSF | Entered Factory 5421 | -6/Factory | Evolved 2 slots: Utility x2 5547 | -6/Factory | Sucked down chute 5547 | -6/Factory | Entered Waste 5570 | -6/Waste | Warlord forces began an assault 5576 | -6/Waste | Spotted C-40 Crusher 5577 | -6/Waste | Destroyed C-40 Crusher 5597 | -6/Waste | Spotted C-40 Crusher 5597 | -6/Waste | Spotted C-40 Crusher 5597 | -6/Waste | Destroyed C-40 Crusher 5601 | -6/Waste | Spotted C-40 Crusher 5607 | -6/Waste | Allies destroyed C-40 Crusher 5608 | -6/Waste | Allies destroyed C-40 Crusher 5627 | -6/Waste | Spotted C-40 Crusher 5638 | -6/Waste | Allies destroyed C-40 Crusher 5641 | -6/Waste | Spotted C-40 Crusher 5646 | -6/Waste | Destroyed C-40 Crusher 5672 | -6/Waste | Discovered new exit (range 16) 5718 | -6/Waste | Entered Factory 5718 | -6/Factory | Accompanied by 11 allies 6047 | -6/Factory | Identified exit to DSF 6067 | -6/Factory | Entered DSF 6067 | -6/DSF | Met a pair of Sappers preparing to destroy DSF 6067 | -6/DSF | Accompanied by 11 allies 6101 | -6/DSF | Additional patrols routed to DSF 6129 | -6/DSF | Discovered new exit (range 14) 6152 | -6/DSF | Entered Factory 6152 | -5/Factory | Evolved 2 slots: Utility x2 6255 | -5/Factory | Fabricated Centrium Leg? 6456 | -5/Factory | Sucked down chute 6456 | -5/Factory | Entered Waste 6456 | -5/Waste | The area was eerily silent 6480 | -5/Waste | Found Prototype Device 6590 | -5/Waste | A Compactor rumbled back to life 6593 | -5/Waste | Spotted C-40 Crusher 6593 | -5/Waste | Destroyed C-40 Crusher 6771 | -5/Waste | Discovered new exit (range 14) 6830 | -5/Waste | A Compactor rumbled back to life 6830 | -5/Waste | Spotted C-40 Crusher 6837 | -5/Waste | Entered Factory 6878 | -5/Factory | Identified Exp. Sensor Array 6910 | -5/Factory | Identified exit to DSF 6938 | -5/Factory | Entered DSF 6963 | -5/DSF | Additional patrols routed to DSF 7106 | -5/DSF | Discovered new exit (range 14) 7232 | -5/DSF | Sterilization system engaged 7234 | -5/DSF | Entered Factory 7234 | -4/Factory | Evolved 2 slots: Power x1, Propulsion x1 7303 | -4/Factory | Identified exit to Research 7303 | -4/Factory | Identified exit to Upper Caves 7303 | -4/Factory | Identified exit to Extension 7323 | -4/Factory | Repaired Adv. Transmission Jammer 7432 | -4/Factory | Spotted B-86 Titan 7441 | -4/Factory | Spotted B-86 Titan 7502 | -4/Factory | Entered Extension 7540 | -4/Extension | Rescued a captive Derelict 7633 | -4/Extension | Identified exit to Cetus 7777 | -4/Extension | Rescued a captive Derelict 7777 | -4/Extension | Rescued a captive Derelict 7783 | -4/Extension | Rescued a captive Derelict 7837 | -4/Extension | Repaired Adv. Datajack 7963 | -4/Extension | Build established: Commander-Ninja 8235 | -4/Extension | Rescued A7 8264 | -4/Extension | Rescued a captive Derelict 8267 | -4/Extension | Rescued a captive Derelict 8278 | -4/Extension | Spotted B-86 Titan 8280 | -4/Extension | Rescued a captive Derelict 8453 | -4/Extension | Discovered exit to Research (range 10) 8684 | -4/Extension | Entered Cetus 8684 | -4/Cetus | Accompanied by 14 allies (A7) 8689 | -4/Cetus | Acquired a Cetus Manufacturing Module code from A7 8699 | -4/Cetus | Spotted Cetus Guard 8701 | -4/Cetus | Spotted Cetus Guard 8702 | -4/Cetus | Spotted Cetus Guard 8706 | -4/Cetus | Destroyed Cetus Guard 8709 | -4/Cetus | Spotted Cetus Guard 8709 | -4/Cetus | Allies destroyed Cetus Guard 8718 | -4/Cetus | Allies destroyed Cetus Guard 8719 | -4/Cetus | Destroyed Cetus Guard 8756 | -4/Cetus | Started Cetus Manufacturing Module 8764 | -4/Cetus | Discovered new exit (range 21) 8781 | -4/Cetus | Manufactured an Enhanced Grunt 8806 | -4/Cetus | Manufactured an Enhanced Grunt 8831 | -4/Cetus | Manufactured an Enhanced Grunt 8834 | -4/Cetus | Spotted Cetus Guard 8834 | -4/Cetus | Spotted Cetus Guard 8834 | -4/Cetus | Spotted Cetus Guard 8844 | -4/Cetus | Discovered exit to Research (range 22) 8850 | -4/Cetus | Destroyed Cetus Guard 8850 | -4/Cetus | Spotted Cetus Guard 8853 | -4/Cetus | Allies destroyed Cetus Guard 8856 | -4/Cetus | Manufactured an Enhanced Grunt 8856 | -4/Cetus | Allies destroyed Cetus Guard 8862 | -4/Cetus | Destroyed Cetus Guard 8869 | -4/Cetus | Met Revision 17 8881 | -4/Cetus | Manufactured an Enhanced Grunt 8890 | -4/Cetus | Lost 3 parts (1p1n1w) 8996 | -4/Cetus | Entered Archives 8996 | -4/Archives | Accompanied by 9 allies (A7) 9023 | -4/Archives | Unable to access archive contents 9025 | -4/Archives | Discovered exit to Research (range 14) 9029 | -4/Archives | Unable to access archive contents 9031 | -4/Archives | Discovered new exit (range 15) 9035 | -4/Archives | Unable to access archive contents 9038 | -4/Archives | Discovered new exit (range 14) 9087 | -4/Archives | Build established: Hacker-Scout 9113 | -4/Archives | Entered Hub_04(d) 9113 | -4/Hub_04(d) | Accompanied by 8 allies 9114 | -4/Hub_04(d) | Discovered exit to Research (range 15) 9462 | -4/Hub_04(d) | Disrupted transfer network 9498 | -4/Hub_04(d) | Network Hub disabled 9553 | -4/Hub_04(d) | Network Hub disabled 9599 | -4/Hub_04(d) | Spotted Lightning 9602 | -4/Hub_04(d) | Spotted Lightning 9602 | -4/Hub_04(d) | Spotted Lightning 9608 | -4/Hub_04(d) | Network Hub disabled 9791 | -4/Hub_04(d) | Network Hub disabled 9791 | -4/Hub_04(d) | Spotted Lightning 9791 | -4/Hub_04(d) | Spotted Lightning 9791 | -4/Hub_04(d) | Spotted Lightning 9812 | -4/Hub_04(d) | Core integrity fell below 50% 9820 | -4/Hub_04(d) | System corruption reached 10% 9840 | -4/Hub_04(d) | System corruption reached 30% 9845 | -4/Hub_04(d) | Entered Research 9845 | -3/Research | Evolved 2 slots: Propulsion x1, Utility x1 9850 | -3/Research | Lost 12 parts (1p6n2u3w) 9897 | -3/Research | Fabricated Adv. Hacking Suite (x1) 9945 | -3/Research | Fabricated Cmb. Linear Gravjet (x2) 10045 | -3/Research | Revision forces began assault on 0b10 10059 | -3/Research | Spotted B-86 Titan 10075 | -3/Research | Met up with Revision 17++ 10087 | -3/Research | Build established: Hacker-Mutant 10216 | -3/Research | Found Prototype Hackware 10216 | -3/Research | Identified Exp. Hacking Suite 10317 | -3/Research | Fabricated Cmb. Linear Gravjet (x2) 10393 | -3/Research | Fabricated Ragnarok Missile Launcher (x1) 10422 | -3/Research | Fabricated Adv. Hacking Suite (x1) 10430 | -3/Research | Found Exp. Hacking Suite 10516 | -3/Research | Build established: Wizard-Mutant 10545 | -3/Research | Research terminal network offline 10545 | -3/Research | Found Adv. Powered Armor 10577 | -3/Research | Repaired Neutrino Core 10597 | -3/Research | Discovered new exit (range 11) 10696 | -3/Research | Entered Quarantine 10697 | -3/Quarantine | Maximum security lockdown engaged 10705 | -3/Quarantine | Found Alien Artifact 10769 | -3/Quarantine | Spotted Alpha 7 10791 | -3/Quarantine | Found Alien Artifact 10791 | -3/Quarantine | Identified Phase Armor 10827 | -3/Quarantine | Found Alien Impact Weapon 10827 | -3/Quarantine | Identified Core Stripper 10858 | -3/Quarantine | Met incapacitated Sigix Warrior 10858 | -3/Quarantine | Lockdown squad dispatched 10879 | -3/Quarantine | Identified Hpw. Transdimensional Reconstructor 10879 | -3/Quarantine | Warped through subspace 10890 | -3/Quarantine | Found Alien Slashing Weapon 10890 | -3/Quarantine | Identified Sigix Broadsword 10950 | -3/Quarantine | Found Alien Reactor 10950 | -3/Quarantine | Identified Matter Drive 10984 | -3/Quarantine | Spotted Fortress 11014 | -3/Quarantine | Discovered new exit (range 6) 11017 | -3/Quarantine | Entered Section 7 11018 | -3/Section 7 | Maximum security lockdown engaged 11128 | -3/Section 7 | Spotted Striker 11150 | -3/Section 7 | Discovered new exit (range 16) 11161 | -3/Section 7 | Entered Research 11161 | -2/Research | Evolved 2 slots: Power x1, Propulsion x1 11184 | -2/Research | Spotted B-90 Cyclops 11396 | -2/Research | Identified exit to Testing 11396 | -2/Research | Identified exit to Access 11411 | -2/Research | First assault squad dispatched 11411 | -2/Research | Entered Access 11411 | -1/Access | Evolved 2 slots: Utility x2 11539 | -1/Access | Identified exit to Surface 11626 | *** | Escaped! Last Messages --------------- >>Index(Machines) Found 41 machines: 20 Terminals 4 Fabricators 4 Repair Stations 4 Recycling Units 4 Scanalyzers 5 Garrison Accesses Downloaded coordinate data. >>Access(Main) Found 1 level access point to Surface: (89,215) Map updated. 11562_ Connecting with Terminal... >>Alert(Check) Current Alert Level: 2-Z 11593_ Connecting with Garrison Access... >>Seal Access door sealed. 11616_ Main Access Shell breached. Map ----- +----------------------------------------------------+ | ?????????????????????????????????????????????????? | | ?????????????????????????????????????????????????? | | ?????????????????????????????????????????????????? | | ?????????????????????????????????????????????????? | | ?????????????????????????????????????????????????? | | ?????????????????????????????????????????????????? | | ?????????????????????????????????????????????????? | | ?????????????????????????????????????????????????? | | ?????????????????????????????????????????????????? | | ?????????????????????????????????????????????????? | | ?????????????????????????????????????????????????? | | ?????????????????????g??w????????????????????????? | | ??????????????????gg??g??????????????????????????? | | ??????????????????????g??????????????????????????? | | ?????????????????????????????????????????????????? | | ?????????????????????????????????????????????????? | | ?????????????????????????????????????????????????? | | ?????????????????????????????????????????????????? | | ????????????????????????????????????????w????????? | | ?????????????????????????????????????????????????? | | ????????????????????""""""""""""?????????????????? | | ????????????????????# #?????????????????? | | ????????????????????# #?????????????????? | | ????????????????????# "" """ #?????????????????? | | ???????????????###### " "????????????????????? | | ???????#########"" " " @" "????????????????????? | | ???????# " " " "" "????????????????????? | | ???????# " " " "????????????????????? | | ???????# #### """"""????????????????????? | | ???????#w #??# ????????????????????????? | | ???????+ " #??#"""""???????????????????????? | | ???????# """ *#???????????????????????????????? | | ???????# """ #???????????????????????????????? | | ???????# " #???????????????????????????????? | | ???????#######"###???????????????????????????????? | | ????????????# #?????BB????BB???????????????????? | | ????????????# #?????BB????BB???????????????????? | | ????????????# #????????????????????????????????? | | ????????????# #????????????????????????????????? | | ????????????# #?????????? ?????????????????????? | | ????????????# #????????? ????????????????????? | | ????????????#"""########?? #????????????????????? | | ????????????#" #?? #????????????????????? | | ????????????## #?? #????????????????????? | | ?????????????# +? #????????????????????? | | ?????????????# " " #? #????????????????????? | | ?????????????#[ " " #? #????????????????????? | | ?????????????# ""G"" #? #????????????????????? | | ?????????????# # #????????????????????? | | ?????????????# # #?????? ????????????? | +----------------------------------------------------+ Best States ------------- Heat Dissipation 81 Energy Generation 39 Energy Capacity 540 Matter Stores 300 Matter Capacity 300 Sight Range 22 Terrain Scan Range 24 Terrain Scan Density 210 Jamming Range 16 Armor Coverage 400 Evasion (%) 57 Melee Accuracy 6 Recoil Reduction 3 Offensive Hacking 66 Defensive Hacking 14 Authchip Count 4 Item Schematics ----------------- Hacking Suite | -8/Materials | Hacked Enh. Quantum Rifle | -5/Factory | Scanalyzed Adv. Terrain Scan Processor | -5/Factory | Scanalyzed Imp. Terrain Scanner | -5/Factory | Scanalyzed Hvy. Treads | -5/Factory | Scanalyzed Adv. Hacking Suite | -4/Factory | Hacked Com. HERF Cannon | -4/Extension | Hacked Adv. Heavy Siege Treads | -4/Extension | Hacked Cmb. Linear Gravjet | -4/Extension | Hacked Biometal Medium Treads | -4/Extension | Hacked Exp. Hacking Suite | -3/Research | Scanalyzed Ragnarok Missile Launcher | -3/Research | Scanalyzed Gravity Flail | -3/Quarantine | Archive Robot Schematics ------------------ T-07 Excavator | -10/Materials | Hacked Fabricated ------------ S-27 Virus | x4 | -7/Factory | Preloaded Centrium Leg | x1 | -5/Factory | Preloaded Adv. Hacking Suite | x1 | -3/Research | Authchip Cmb. Linear Gravjet | x2 | -3/Research Cmb. Linear Gravjet | x2 | -3/Research Ragnarok Missile Launcher | x1 | -3/Research | Preloaded Adv. Hacking Suite | x1 | -3/Research Alien Tech Used ----------------- Phase Armor Core Stripper High-powered Transdimensional Reconstructor Sigix Broadsword Matter Drive Achievements -------------- 404 Challenges ------------ None Game ------ Seed DimensionalFluxBoomstick Manual? 0 Play Time 02:57:00 Cumulative 259.4 hours Start 2022.10.15 @ 17:21:39 End 2022.10.15 @ 20:31:03 Sessions 1 Manual Loads 0 Difficulty Rogue Special Mode None Game No. 179 Rogue 176 Adventurer 3 Explorer 0 Win Type 0 Total 4 Types 3/0/1/0/0/0/0/0/0 Lore% 71 Gallery% 73 Achievement% 63 Wizard Run 0 Options --------- ASCII 0 Keyboard 0 Movement Numpad Keybinds 0 Fullscreen 1 Font 18/SmallcapsGlow Map View 76x50 Tactical HUD 1 Map Filters NONE Filters NONE Steam 1 RUN: 6f650cee-f44d-405c-9054-40ecae2bce8a